Cogmind - Beta 16.1 @@@ ROGUE MODE // 2026.03.04 @ 07:19:07 Player: lynn Result: Destroyed by S-10 Pest with Light Assault Rifle Performance ------------- Evolutions (2) 1000 Regions Visited (4) 800 Robots Destroyed (27) 135 Value Destroyed (814) 814 Prototype IDs (0) 0 Alien Tech Used (0) 0 Bonus (0) 0 TOTAL SCORE: 2749 Bonus ------- None Cogmind --------- Core Integrity 0/550 Matter 300/300 Energy 100/100 System Corruption 0% Temperature Cool (0) Movement Core (1350) Ox26 Location -8/Materials Parts ------- > --- POWER (2) -------- (None) > --- PROPULSION (4) --- (None) > --- UTILITY (3) ------ Huge Storage Unit > --- WEAPON (2) ------- (None) > --- INVENTORY (25) --- (None) Peak State ------------ > --- POWER ------------ Improved Ion Engine > --- PROPULSION ------- Light Treads Light Treads > --- UTILITY ---------- Small Storage Unit Huge Storage Unit Shield Generator > --- WEAPON ----------- Small Laser Particle Gun > --- INVENTORY -------- Light Ion Engine Improved Ion Engine Aluminum Leg Aluminum Leg Aluminum Leg Small Storage Unit Light Armor Plating Particle Cannon [Rating: 12] Favorites ----------- Power Improved Ion Engine Engine Improved Ion Engine Propulsion Light Treads Treads Light Treads Leg Aluminum Leg Utility Huge Storage Unit Device Shield Generator Storage Huge Storage Unit Protection Hardened Light Armor Plating Weapon Small Laser Energy Gun Small Laser Energy Cannon Particle Cannon Ballistic Gun Light Assault Rifle Launcher Grenade Launcher Build | -11 -10 -10 -9 -8 ------- Run | Yrd Mat Min Mat Mat Slots Evolved 4 | . . . 2 2 Power 1 | . . . 1 . Propulsion 2 | . . . . 2 Utility 1 | . . . 1 . Weapon . | . . . . . Parts Attached 25 | 6 11 1 7 . Power 4 | 1 1 . 2 . Engine 4 | 1 1 . 2 . Core . | . . . . . Reactor . | . . . . . Propulsion 5 | 2 . . 3 . Treads 2 | 2 . . . . Leg 3 | . . . 3 . Wheel . | . . . . . Hover . | . . . . . Flight . | . . . . . Utility 7 | 1 5 . 1 . Device 3 | 1 2 . . . Storage 2 | . 1 . 1 . Processor . | . . . . . Hackware . | . . . . . Protection 2 | . 2 . . . Artifact . | . . . . . Weapon 9 | 2 5 1 1 . Energy Gun 2 | . 1 1 . . Energy Cannon 3 | . 2 . 1 . Ballistic Gun 3 | 2 1 . . . Ballistic Cannon . | . . . . . Launcher 1 | . 1 . . . Special Weapon . | . . . . . Impact Weapon . | . . . . . Slashing Weapon . | . . . . . Piercing Weapon . | . . . . . Special Melee Weapon . | . . . . . Unidentified Prototypes . | . . . . . Parts Lost 12 | . 1 . 4 7 Power 3 | . . . 1 2 Propulsion 4 | . . . 2 2 Utility 2 | . . . 1 1 Weapon 3 | . 1 . . 2 Highest Loss Streak 4 | . 1 . 2 4 To Critical Strikes . | . . . . . Average Backups 4 | 4 4 7 4 . Power 1 | . 1 2 1 . Propulsion 1 | 1 1 2 1 . Utility 1 | . 1 2 1 . Weapon . | . . 1 . . Tool/Special . | . . . . . Unused Backups 4 | . 3 . 1 . Power 2 | . 2 . . . Propulsion 1 | . 1 . . . Utility 1 | . . . 1 . Weapon . | . . . . . Tool/Special . | . . . . . Average Slot Usage (%) 73 | . 98 95 60 33 Engine 11 | . 14 14 10 7 Treads 14 | . 28 23 4 . Leg 4 | . . . 10 4 Device 6 | . 13 14 1 . Storage 9 | . 6 14 11 9 Protection 3 | . 8 . . 2 Energy Gun 9 | . . 19 16 . Energy Cannon 5 | . 2 8 5 9 Ballistic Gun 4 | . 14 . . . Launcher 2 | . 8 . . . Peak Build Rating 12 | 6 11 11 12 11 Average Rating 7 | 4 8 10 7 5 On Entrance 6 | . 6 10 11 7 Avg Prop Armor Cover (%) 19 | 26 . 13 . . Naked Turns . | . . . . . Heaviest Build 101 | 9 22 19 94 101 Greatest Support 40 | 40 40 40 40 10 Greatest Overweight (x) 31 | 2 . 6 27 31 Average Overweight (x) 1 | . . . 5 18 Largest Inventory Capacity 25 | 5 8 8 25 25 Average Capacity 15 | 5 6 8 24 25 Most Carried 8 | 5 7 8 8 3 Average Carried 4 | 4 4 7 4 . Final Capacity 25 | 5 8 8 25 25 Final Carried 8 | 5 6 8 3 . Class Distribution -------------------- 94% | Mutant 5% | Scavenger-Mutant Dominant Class ---------------- Mutant | -10/Materials Mutant | -10/Mines Mutant | -9/Materials Mutant | -8/Materials Resources | -11 -10 -10 -9 -8 ----------- Run | Yrd Mat Min Mat Mat Matter Collected 709 | 262 255 57 113 22 Remotely 169 | 169 . . . . Salvage Created 889 | 82 341 154 234 78 Parts 54 | 3 25 8 14 4 Haulers Intercepted . | . . . . . Recyclers Shooed 2 | . 2 . . . Parts Field Recycled . | . . . . . Retrieved Matter . | . . . . . Parts Self-Destructed . | . . . . . Prevented . | . . . . . Parts Restored . | . . . . . Kills | -11 -10 -10 -9 -8 ------- Run | Yrd Mat Min Mat Mat Combat Hostiles Destroyed 20 | . 9 3 5 3 Guns 11 | . 3 3 5 . Cannons 3 | . . . . 3 AOE 6 | . 6 . . . Classes Destroyed 7 | 1 4 . 1 1 Worker 2 | . 1 . 1 . Builder 2 | . 2 . . . Recycler 1 | 1 . . . . Watcher 2 | . 1 . . 1 Swarmer 3 | . . . . 3 Grunt 15 | . 9 3 3 . Sentry 2 | . . . 2 . Best Kill Streak 7 | 1 7 2 3 3 Combat Bots Only 5 | . 5 2 2 3 Max Kills in Single Turn 2 | 1 2 1 1 1 Gunslinging . | . . . . . Exploded 1 | . 1 . . . Melee . | . . . . . Uniques/NPCs Destroyed . | . . . . . Combat | -11 -10 -10 -9 -8 -------- Run | Yrd Mat Min Mat Mat Hostile Shots Fired 312 | . 32 . 52 228 Missed 105 | . 12 . 15 78 Hits 207 | . 20 . 37 150 Projectile 207 | . 20 . 37 150 Critical Strikes 1 | . . . 1 . Damage Taken 2195 | . 496 . 504 1195 Core 645 | . 36 . 57 552 Absorbed by Shields 94 | . 74 . 20 . Core Remaining (%) 90 | 100 . 85 85 . Volleys Fired 102 | 4 32 28 25 13 Largest 2 | 2 2 2 2 2 Hottest 124 | 40 68 105 105 124 Shots Fired 151 | 8 48 29 50 16 Gun 114 | 8 27 29 50 . Cannon 21 | . 5 . . 16 Launcher 16 | . 16 . . . Special . | . . . . . Kinetic 35 | 8 27 . . . Thermal 97 | . 5 29 50 13 Explosive 16 | . 16 . . . Electromagnetic 3 | . . . . 3 Robot Hit Streak 12 | 4 5 12 5 4 Robot Miss Streak 4 | 1 3 3 4 2 Penetration Max . | . . . . . Secondary Targets 2 | . . . 2 . Max Gunslinging Chain 1 | . . . 1 . Shots Hit Robots 95 | 6 26 23 30 10 Core Hits 51 | 2 25 8 10 6 Critical Kills . | . . . . . Critical Parts Destroyed . | . . . . . Critical Strikes . | . . . . . Melee Attacks . | . . . . . Impact . | . . . . . Slashing . | . . . . . Piercing . | . . . . . Sneak Attacks . | . . . . . Combat Hostiles . | . . . . . Follow-up Attacks . | . . . . . Damage Inflicted 1669 | 54 706 254 416 239 Guns 905 | 54 185 254 412 . Cannons 259 | . 21 . . 238 Explosions 500 | . 500 . . . Melee . | . . . . . Ramming 5 | . . . 4 1 Kinetic 239 | 54 185 . . . Thermal 849 | . 21 254 412 162 Explosive 500 | . 500 . . . Electromagnetic 76 | . . . . 76 Impact . | . . . . . Slashing . | . . . . . Piercing . | . . . . . Highest Corruption . | . . . . . Average Corruption . | . . . . . Corruption Purged . | . . . . . Corruption Blocked . | . . . . . Overload Shots . | . . . . . Overflow Damage 54 | . 3 . . 51 Projectiles 51 | . . . . 51 Explosions 3 | . 3 . . . Melee . | . . . . . Knockbacks . | . . . . . Impact . | . . . . . Kinetic . | . . . . . Secondary . | . . . . . Self-Inflicted Damage 231 | . 231 . . . Shots 6 | . 6 . . . Rammed 1 | . . . . 1 Targets Rammed 2 | . . . 1 1 Kicked 1 | . . . 1 . Crushed . | . . . . . Highest Temperature 216 | . 120 54 216 192 Average Temperature 67 | . 47 27 95 84 Received Heat Transfer 292 | . 134 . 158 . Siege Activations . | . . . . . Martial Activations . | . . . . . Shielding Activations . | . . . . . Robots Disrupted . | . . . . . Combat Hostiles . | . . . . . Robots Corrupted . | . . . . . Combat Hostiles . | . . . . . Parts Fried 1 | . . . . 1 Impact Corruptions . | . . . . . Robots Melted . | . . . . . Combat Hostiles . | . . . . . Parts Melted . | . . . . . Heat Transferred 1875 | . 37 587 955 296 Parts Sabotaged . | . . . . . Parts Stolen . | . . . . . Parts Stripped . | . . . . . Power Chain Reactions . | . . . . . Alert | -11 -10 -10 -9 -8 ------- Run | Yrd Mat Min Mat Mat Maximum Alert Level 1 | . 1 . . . Low Security (%) 98 | 100 95 100 100 100 Level 1 1 | . 4 . . . Level 2 . | . . . . . Level 3 . | . . . . . Level 4 . | . . . . . Level 5 . | . . . . . High Security . | . . . . . Max Security . | . . . . . Peak Influence 213 | 5 213 84 55 40 Initial 54 | . . 54 1 . Average 41 | . 108 47 6 9 Influence Increases 688 | 5 406 60 140 77 Destroy 0b10 Robot/C 400 | . 180 60 100 60 Destroy 0b10 Robot/NC 35 | 5 20 . 5 5 Destroy Leader 84 | . 52 . 20 12 Disable Machine 90 | . 75 . 15 . Destroy Structure 79 | . 79 . . . Influence Decreases 688 | 5 266 196 144 77 Entered New Map 89 | . . 86 3 . Time Decay 552 | 5 256 110 124 57 Lost Part 47 | . 10 . 17 20 Squads Dispatched 3 | . 2 . 1 . Investigation . | . . . . . Extermination . | . . . . . Reinforcement 3 | . 2 . 1 . Assault . | . . . . . Garrison . | . . . . . Intercept . | . . . . . Searches Triggered . | . . . . . Construction Impeded . | . . . . . Haulers Reinforced . | . . . . . Active Scanning Responses . | . . . . . Cargo Convoy Interrupts . | . . . . . Stealth | -11 -10 -10 -9 -8 --------- Run | Yrd Mat Min Mat Mat Distress Signals 3 | . 1 . 2 . Communications Jammed . | . . . . . Distress Signals . | . . . . . Times Spotted 28 | . 13 . 7 8 Peak Tracking Total 4 | . 3 . 3 4 Tactical Retreats . | . . . . . Traps | -11 -10 -10 -9 -8 ------- Run | Yrd Mat Min Mat Mat Traps Triggered 2 | . 2 . . . Indirectly . | . . . . . Trap Hack Attempts . | . . . . . Triggered . | . . . . . Disarmed . | . . . . . Reprogrammed . | . . . . . Reused . | . . . . . Traps Extracted . | . . . . . Installed . | . . . . . Triggered . | . . . . . Machines | -11 -10 -10 -9 -8 ---------- Run | Yrd Mat Min Mat Mat Machines Disabled 6 | . 5 . 1 . Max in Single Turn 2 | . 2 . 1 . Machines Repaired . | . . . . . Machines Dismantled . | . . . . . Machines Sabotaged . | . . . . . Overloaded Fab Kills . | . . . . . Hacking | -11 -10 -10 -9 -8 --------- Run | Yrd Mat Min Mat Mat Machines Accessed 2 | . 2 . . . Terminals . | . . . . . Fabricators . | . . . . . Repair Stations . | . . . . . Recycling Units 2 | . 2 . . . Scanalyzers . | . . . . . Garrison Access . | . . . . . Total Hacks 6 | . 6 . . . Successful 4 | . 4 . . . Failed 2 | . 2 . . . Catastrophic . | . . . . . Database Lockouts . | . . . . . Manual 1 | . 1 . . . Terminals . | . . . . . Fabricators . | . . . . . Repair Stations . | . . . . . Recycling Units 6 | . 6 . . . Scanalyzers . | . . . . . Garrison Access . | . . . . . Terminal Hacks . | . . . . . Fabricator Hacks . | . . . . . Repair Station Hacks . | . . . . . Recycling Unit Hacks 4 | . 4 . . . Recycle Component 3 | . 3 . . . Report Inventory 1 | . 1 . . . Scanalyzer . | . . . . . Garrison Access Hacks . | . . . . . Unauthorized Hacks . | . . . . . Terminals . | . . . . . Fabricators . | . . . . . Repair Stations . | . . . . . Recycling Units . | . . . . . Scanalyzers . | . . . . . Garrison Access . | . . . . . Data Cores Recovered . | . . . . . Used . | . . . . . Hacking Detections 2 | . 2 . . . Full Trace Events 1 | . 1 . . . Feedback Events . | . . . . . Feedback Blocked . | . . . . . Robot Schematics Acquired . | . . . . . Robots Built . | . . . . . Authchips . | . . . . . Time . | . . . . . Total Robot Build Rating . | . . . . . Part Schematics Acquired . | . . . . . Parts Built . | . . . . . Authchips . | . . . . . Time . | . . . . . Total Part Build Rating . | . . . . . Part Studies Acquired . | . . . . . Parts Repaired . | . . . . . Time . | . . . . . Parts Recycled 3 | . 3 . . . Recycled Matter . | . . . . . Retrieved Matter . | . . . . . Retrieved Components . | . . . . . Parts Scanalyzed . | . . . . . Part Schematics Acquired . | . . . . . Parts Damaged . | . . . . . Bothacking | -11 -10 -10 -9 -8 ------------ Run | Yrd Mat Min Mat Mat Used RIF Installer . | . . . . . Robots Hacked . | . . . . . Non-combat . | . . . . . Combat . | . . . . . Robot Hacks Applied . | . . . . . Relay Couplers Released . | . . . . . Fabnet Peak Effective % . | . . . . . Robots Rewired . | . . . . . Allies Hacked . | . . . . . Hacks Repelled . | . . . . . Allies | -11 -10 -10 -9 -8 -------- Run | Yrd Mat Min Mat Mat Total Allies . | . . . . . Largest Group . | . . . . . Highest-Rated Group . | . . . . . Highest-Rated Ally . | . . . . . Total Orders . | . . . . . Ally Attacks . | . . . . . Total Damage . | . . . . . Kills . | . . . . . Allies Corrupted . | . . . . . Allies Melted . | . . . . . Intel | -11 -10 -10 -9 -8 ------- Run | Yrd Mat Min Mat Mat Active Infowar (turns) 265 | . 265 . . . Terrain 265 | . 265 . . . Robot Analysis Total . | . . . . . Derelict Logs Recovered 1 | . . 1 . . Drone Launches . | . . . . . Drone Recoveries . | . . . . . Exploration | -11 -10 -10 -9 -8 ------------- Run | Yrd Mat Min Mat Mat Turns Passed 2299 | 226 706 235 834 298 Spaces Moved 802 | 155 377 96 151 23 Core 73 | 50 . 9 3 11 Treads 621 | 105 377 87 52 . Legs 108 | . . . 96 12 Wheels . | . . . . . Hover . | . . . . . Flight . | . . . . . Fastest Speed 50 | 50 160 160 160 750 Average Speed 245 | 130 160 177 493 1091 Slowest Speed 1600 | 160 160 350 1400 1600 Overloaded Moves . | . . . . . Propulsion Burnouts . | . . . . . Robots Hopped . | . . . . . Potential Cave-ins . | . . . . . Cave-ins Triggered . | . . . . . Exploration Rate (%) 20 | 5 58 21 14 4 Regions Visited 4 Branch Regions 1 Pre-discovered Areas . | . . . . . Known Exits Taken . | . . . . . Unknown Exits Taken 4 | 1 1 1 1 . Scrap Searched . | . . . . . Spaces Dug . | . . . . . Terrain Destroyed 85 | . 85 . . . Melee . | . . . . . Projectile . | . . . . . AOE 85 | . 85 . . . Terrain Rammed . | . . . . . Walls Destroyed . | . . . . . Machines Disabled . | . . . . . Actions | -11 -10 -10 -9 -8 --------- Run | Yrd Mat Min Mat Mat Total 977 | 169 437 132 199 40 Wait . | . . . . . Move 798 | 154 376 95 150 23 Hop . | . . . . . Pick Up 16 | 5 7 2 2 . Fast Attach 14 | 6 5 2 1 . Attach 14 | . 4 . 7 3 Detach 11 | . 3 2 6 . Swap 5 | . 3 1 1 . Drop 15 | . 7 2 6 . Fire 102 | 4 32 28 25 13 Melee . | . . . . . Ram 1 | . . . . 1 Kick 1 | . . . 1 . Crush . | . . . . . Escape Stasis . | . . . . . Rewire . | . . . . . Trap . | . . . . . Miscellaneous . | . . . . . Route ------- -11/Scrapyard -10/Materials (discovered 2 exits: [*Mat] / [*Min]) -10/Mines -9/Materials (discovered 2 exits: [*Mat] / [*Sto]) -8/Materials History --------- Turn | Location | Event 3 | -11/Scrapyard | Discovered new exit (range 16) 227 | -11/Scrapyard | Entered Materials 304 | -10/Materials | Build established: Mutant 626 | -10/Materials | Discovered new exit (range 6) 919 | -10/Materials | Discovered new exit (range 8) 933 | -10/Materials | Entered Mines 1007 | -10/Mines | Assisted by bots powering up and referring to "LRC-V3" 1025 | -10/Mines | Met a Derelict bent on vengeance 1101 | -10/Mines | Learned Materials stockpile data 1163 | -10/Mines | Discovered new exit (range 3) 1168 | -10/Mines | Entered Materials 1168 | -9/Materials | Evolved 2 slots: Power x1, Utility x1 1666 | -9/Materials | Discovered new exit (range 13) 1912 | -9/Materials | Discovered new exit (range 13) 2002 | -9/Materials | Entered another Materials area 2002 | -8/Materials | Evolved 2 slots: Propulsion x2 2158 | -8/Materials | Lost 4 parts (2n1u1w) 2256 | -8/Materials | Core integrity fell below 50% 2282 | -8/Materials | Core integrity fell below 20% 2300 | -8/Materials | Destroyed by S-10 Pest with Light Assault Rifle Last Messages --------------- 02106_ Aluminum Leg destroyed. 02109_ Destroyed Flight Unit. 02110_ Aluminum Leg destroyed. 02112_ Lgt. EM Pulse Cannon destroyed. 02113_ S-10 Pest destroyed. 02125_ Acquired 13 matter. 02127_ Lgt. Armor Plating destroyed. 02134_ R-06 Scavenger collects Lgt. Ion Engine. 02140_ R-06 Scavenger collects Lgt. Assault Rifle. 02141_ S-10 Pest destroyed. 02142_ R-06 Scavenger collects Flight Unit. 02143_ Slammed into R-06 Scavenger. 02143_ Destabilizing: Core damaged (-5). 02143_ R-06 Scavenger collects Lgt. Assault Rifle. 02158_ Acquired 9 matter. 02211_ Imp. Ion Engine destroyed. 02218_ Particle Cannon destroyed. 02232_ K-01 Serf collects debris. Map ----- +----------------------------------------------------+ | ?????????????????????????????????????????????????? | | ?????????????????????????????????????????????????? | | ?????????????????????????????????????????????????? | | ?????????????????????????????????????????????????? | | ?????????????????????????????????????????????????? | | ?????????????????????????????????????????????????? | | ?????????????????????????????????????????????????? | | ?????????????????????????????????????????????????? | | ?????????????????????????????????????????????????? | | ?????????????????????????????????????????????????? | | ?????????????????????????????????????????????????? | | ?????????????????????????????????????????????????? | | ?????????????????????????????????????????????????? | | ?????????????????????????????????????????????????? | | ?????????????????????????????????????????????????? | | ?????????????????????????????????????????????????? | | ?????????????????????########????????????????????? | | ?????????????????????# #????????????????????? | | ?????????????????????# #????????????????????? | | ?????????????????????# "" #????????????????????? | | ?????????????????????# "Y #????????????????????? | | ?????????????????????# "" #????????????????????? | | ?????????????????????# #????????????????????? | | ??????????????????#######+######/######??????????? | | ??????????????????# %%% s ???????? | | ????????########### @ s ???????? | | ????? % s ???????? | | ????? ###+#############/#????????? | | ????????########### #?? ?????????????????????? | | ??????????????????# #??? #???????????????????? | | ??????????????????# #???? #???????????????????? | | ??????????????????#####????? #???????????????????? | | ???????????????????????????? #???????????????????? | | ?????????????????????????????#???????????????????? | | ?????????????????????????????????????????????????? | | ?????????????????????????????????????????????????? | | ?????????????????????????????????????????????????? | | ?????????????????????????????????????????????????? | | ?????????????????????????????????????????????????? | | | | | | | | | | | | | | | | | | | | | | | +----------------------------------------------------+ Best States ------------- Heat Dissipation 31 Energy Generation 17 Energy Capacity 290 Matter Stores 300 Matter Capacity 300 Sight Range 16 Terrain Scan Range 14 Terrain Scan Density 10 Armor Coverage 150 Evasion (%) 50 Recoil Reduction 2 Item Schematics ----------------- None Robot Schematics ------------------ None Fabricated ------------ Nothing Repaired ---------- Nothing Studied --------- None Alien Tech Used ----------------- None Achievements -------------- DATA ERROR: Steam Global Achievement% For Emergencies Only Let's See Who's Tougher Organ Harvest Use The Force Challenges ------------ None Game ------ Seed ReinforcedFlyingAutominer Manual? 0 Play Time 00:23:45 Cumulative 0.6 hours Start 2026.03.04 @ 06:56:02 End 2026.03.04 @ 07:19:07 Sessions 1 Manual Loads 0 Difficulty Rogue Special Mode None Game No. 4 Rogue 4 Adventurer 0 Explorer 0 Win Type - Total 0 Types 0/0/0/0/0/0/0/0/0/0 Lore% 0 Gallery% 2 Achievement% 1 Wizard Run 0 Options --------- Layout 1 ASCII 0 Keyboard 0 Movement Mouse Keybinds 0 Fullscreen 1 Font 24/Smallcaps Map View 50x35 Zoom Use 0% Tactical HUD 1 Map Filters NONE Filters NONE Steam 1 RUN: e1a166a5-4f1d-478a-9b56-022ca312b1da